bitfinex-derivatives/quotes_BTCF0:USTF0_20241221
["timestamp","ask_amount","ask_price","bid_price","bid_amount"]
[1734810199847,0.002,97089.0,97088.0,0.2373]
[1734810201449,0.01021174,97095.0,97094.0,0.051519]
[1734810201650,0.01021174,97095.0,97094.0,0.412319]
[1734810202754,0.01521174,97095.0,97094.0,0.412319]
[1734810203452,0.01522461,97095.0,97094.0,0.412319]
[1734810203841,0.005,97095.0,97094.0,0.412319]
[1734810205247,0.01522461,97095.0,97094.0,0.412319]
[1734810206349,0.01528782,97095.0,97094.0,0.412319]
[1734810206550,0.1,97100.0,97094.0,0.412319]
[1734810207159,0.1,97100.0,97099.0,0.051517]
[1734810207551,0.10316425,97114.0,97099.0,0.4095306]
[1734810207760,0.0914483,97114.0,97113.0,0.051509]
[1734810209259,0.002,97114.0,97113.0,0.051509]
[1734810210452,0.002,97114.0,97113.0,0.06203909]
[1734810216265,0.002,97114.0,97104.0,0.18488987]
[1734810216456,0.051513,97105.0,97104.0,0.18488987]
[1734810217160,0.051514,97104.0,97100.0,0.051516]
[1734810217353,0.3608,97108.0,97095.0,0.18488987]
[1734810217557,0.051516,97101.0,97095.0,0.18488987]
[1734810217769,0.051516,97100.0,97098.0,0.051517]
[1734810218472,0.051519,97094.0,97093.0,0.3608]
[1734810218763,0.06176147,97094.0,97093.0,0.3608]
[1734810219465,0.0699142,97094.0,97093.0,0.3608]
[1734810219866,0.0699142,97094.0,97093.0,0.3618]
[1734810220264,0.06176147,97094.0,97093.0,0.3618]
[1734810220660,0.06172541,97094.0,97093.0,0.3618]
[1734810221464,0.06172541,97094.0,97093.0,0.3608]
[1734810221765,0.06372541,97094.0,97093.0,0.3608]
[1734810222271,0.051521,97090.0,97085.0,0.0008]
[1734810222469,0.06172741,97090.0,97081.0,0.18488987]
[1734810222678,0.051526,97082.0,97081.0,0.18488987]
[1734810222870,0.43067162,97082.0,97081.0,0.18488987]
[1734810223575,0.051532,97069.0,97068.0,0.18488987]
[1734810223770,0.06173841,97069.0,97068.0,0.18488987]
[1734810225193,0.06173841,97069.0,97068.0,0.009]
[1734810225487,0.06173841,97069.0,97068.0,0.014]
[1734810225912,0.051532,97071.0,97068.0,0.014]
[1734810226905,0.09173054,97076.0,97068.0,0.014]
[1734810226906,0.051532,97070.0,97068.0,0.014]
[1734810227590,0.051532,97070.0,97068.0,0.009]
[1734810227793,0.051532,97070.0,97068.0,0.013]
[1734810227992,0.01020359,97075.0,97068.0,0.004]
[1734810228205,0.051532,97070.0,97068.0,0.013]
[1734810229099,0.051532,97070.0,97068.0,0.014]
[1734810230803,0.051532,97070.0,97068.0,0.009]
[1734810231008,0.051532,97070.0,97068.0,0.013]
[1734810232925,0.051542,97051.0,97041.0,0.0808]
[1734810233123,0.051542,97051.0,97039.0,0.18488987]
[1734810233328,0.412348,97040.0,97039.0,0.16624025]
[1734810233531,0.412348,97040.0,97039.0,0.1426139]
[1734810234207,0.412348,97040.0,97024.0,0.1594]
[1734810234208,0.3608,97040.0,97035.0,0.00010566]
[1734810234517,0.05155,97036.0,97035.0,0.00010566]
[1734810235709,0.05555,97036.0,97035.0,0.00010566]
[1734810237221,0.05755,97036.0,97035.0,0.00010566]
[1734810239613,0.05355,97036.0,97035.0,0.00010566]
[1734810239818,0.05755,97036.0,97035.0,0.00010566]
[1734810241121,0.05355,97036.0,97035.0,0.00010566]
[1734810241429,0.05555,97036.0,97035.0,0.00010566]
[1734810241724,0.05355,97036.0,97035.0,0.00010566]
[1734810241918,0.05755,97036.0,97035.0,0.00010566]
[1734810242371,0.05355,97036.0,97035.0,0.00010566]
[1734810242528,0.05755,97036.0,97035.0,0.00010566]
[1734810244221,0.05755,97036.0,97009.0,0.0787]
[1734810244222,0.36688835,97036.0,97009.0,0.0787]
[1734810244418,0.05156,97018.0,97009.0,0.0787]
[1734810244644,0.05156,97018.0,97007.0,0.3608]
[1734810245425,0.051562,97014.0,97004.0,0.00154618]
[1734810245828,0.3608,97015.0,97004.0,0.00154618]
[1734810246135,0.051566,97005.0,97004.0,0.00154618]
[1734810248416,0.051566,97005.0,97004.0,0.00754618]
[1734810248614,0.052566,97005.0,97004.0,0.01654618]
[1734810252709,0.052566,97005.0,97004.0,0.015]
[1734810252899,0.06270762,97005.0,97004.0,0.015]
[1734810256203,0.06280469,97005.0,97004.0,0.015]
[1734810256712,0.06290023,97005.0,97004.0,0.015]
[1734810258412,0.07117415,97005.0,97004.0,0.015]
[1734810259500,0.07116223,97005.0,97004.0,0.015]
[1734810259906,0.07124896,97005.0,97004.0,0.015]
[1734810261802,0.0712728,97005.0,97004.0,0.015]
[1734810262401,0.0712866,97005.0,97004.0,0.015]
[1734810264804,0.0712866,97005.0,97004.0,0.009]
[1734810265004,0.0712866,97005.0,97004.0,0.011]
[1734810265206,0.05993047,97005.0,97004.0,0.006]
[1734810265406,0.07007579,97005.0,97004.0,0.006]
[1734810266614,0.07007579,97005.0,97004.0,0.002]
[1734810266802,0.07007579,97005.0,97004.0,0.006]
[1734810267207,0.07007579,97005.0,97004.0,0.002]
[1734810267406,0.07007579,97005.0,97004.0,0.006]
[1734810268607,0.07005286,97005.0,97004.0,0.006]
[1734810270115,0.07005286,97005.0,97004.0,0.3668]
[1734810271117,0.07037571,97005.0,97004.0,0.3668]
[1734810271509,0.01880971,97005.0,97004.0,0.3668]
[1734810271710,0.051563,97012.0,97007.0,0.051565]
[1734810271910,0.09173054,97014.0,97009.0,0.051564]
[1734810272109,0.09173054,97014.0,97013.0,0.3608]
[1734810272311,0.051561,97015.0,97013.0,0.3608]
[1734810277911,0.09173054,97024.0,97022.0,0.051557]
[1734810278120,0.09173054,97024.0,97023.0,0.5898]
[1734810278416,0.051555,97027.0,97023.0,0.5898]
[1734810279007,0.002,97024.0,97023.0,0.5898]
[1734810279919,0.002,97027.0,97023.0,0.641357]
[1734810280219,0.002,97027.0,97026.0,0.412355]
[1734810280816,0.09179313,97042.0,97037.0,0.051549]
[1734810281017,0.09179313,97042.0,97041.0,0.3608]
[1734810282005,0.051541,97053.0,97041.0,0.3608]
[1734810282206,0.051537,97060.0,97052.0,0.3608]
[1734810282419,0.12198384,97063.0,97053.0,0.0769]
[1734810282718,0.13212753,97063.0,97053.0,0.0769]
[1734810282917,0.05154,97055.0,97053.0,0.0769]
[1734810283212,0.3608,97059.0,97041.0,0.3608]
[1734810283414,0.05155,97036.0,97035.0,0.24609001]
[1734810284416,0.06171022,97036.0,97035.0,0.24609001]
[1734810284716,0.06471022,97036.0,97035.0,0.24609001]
[1734810284913,0.05455,97036.0,97035.0,0.24609001]
[1734810285113,0.051551,97034.0,97032.0,0.3608]
[1734810286311,0.053551,97034.0,97032.0,0.3608]
[1734810288313,0.002,97034.0,97033.0,0.051552]
[1734810289718,0.002,97034.0,97032.0,0.3608]
[1734810289912,0.002,97034.0,97033.0,0.051552]
[1734810290808,0.002,97034.0,97032.0,0.3608]
[1734810291017,0.002,97034.0,97033.0,0.051552]
[1734810292917,0.051547,97042.0,97037.0,0.051549]
[1734810293118,0.051547,97042.0,97041.0,0.3608]
[1734810293722,0.051543,97049.0,97041.0,0.3608]
[1734810293918,0.051543,97049.0,97041.0,0.7216]
[1734810294218,0.006,97042.0,97041.0,0.773147]
[1734810294410,0.051543,97049.0,97041.0,0.7216]
[1734810294611,0.006,97042.0,97041.0,0.773147]
[1734810296211,0.051541,97053.0,97050.0,0.051542]
[1734810296410,0.051541,97053.0,97052.0,0.3608]
[1734810296915,0.15308942,97060.0,97052.0,0.3608]
[1734810297134,0.15308942,97060.0,97058.0,0.051538]
[1734810297135,0.051537,97060.0,97058.0,0.051538]
[1734810297919,0.060537,97060.0,97058.0,0.051538]
[1734810298322,0.009,97060.0,97052.0,0.4371]
[1734810298514,0.051541,97054.0,97052.0,0.4363]
[1734810299109,0.051541,97054.0,97052.0,0.001]
[1734810299314,0.15308942,97062.0,97044.0,0.412346]
[1734810299514,0.051544,97047.0,97044.0,0.412346]
[1734810300312,0.051542,97052.0,97044.0,0.3712585]
[1734810300508,0.01022254,97051.0,97047.0,0.051544]
[1734810300720,0.01022254,97050.0,97044.0,0.3720585]
[1734810300914,0.01022254,97049.0,97048.0,0.051543]
[1734810301118,0.01022254,97049.0,97048.0,0.051544]
[1734810301317,0.01022254,97056.0,97048.0,0.3608]
[1734810301513,0.01172458,97072.0,97054.0,0.05154]
[1734810301514,0.01846896,97055.0,97054.0,0.05154]
[1734810301715,0.01022254,97055.0,97054.0,0.41234]
[1734810302018,0.02506938,97066.0,97064.0,0.051535]
[1734810302225,0.07660238,97069.0,97065.0,0.3608]
[1734810302417,0.051534,97067.0,97065.0,0.3608]
[1734810302818,0.00827357,97072.0,97065.0,0.3608]
[1734810303119,0.00827357,97071.0,97065.0,0.3608]
[1734810303426,0.01043481,97068.0,97065.0,0.3608]
[1734810303625,0.004,97067.0,97065.0,0.3608]
[1734810303822,0.00827357,97066.0,97065.0,0.412334]
[1734810304424,0.01043481,97066.0,97065.0,0.412335]
[1734810304811,0.006,97071.0,97069.0,0.051532]
[1734810305010,0.006,97071.0,97070.0,0.5161]
[1734810305613,0.12198384,97080.0,97070.0,0.5161]
[1734810305614,0.01043481,97078.0,97070.0,0.5161]
[1734810305825,0.12198384,97080.0,97077.0,0.3608]
[1734810306020,0.12198384,97080.0,97078.0,0.130128]
[1734810306818,0.051528,97078.0,97077.0,0.3608]
[1734810307020,0.06176399,97078.0,97077.0,0.001]
[1734810307217,0.051537,97061.0,97056.0,0.051539]
[1734810307417,0.051538,97059.0,97056.0,0.051539]
[1734810308116,0.05154,97055.0,97054.0,0.3608]
[1734810309214,0.01023599,97055.0,97054.0,0.41234]
[1734810309715,0.01023599,97055.0,97054.0,0.41334]
[1734810310121,0.02514103,97066.0,97059.0,0.051537]
[1734810310321,0.02514314,97065.0,97059.0,0.051537]
[1734810310523,0.00828392,97064.0,97059.0,0.051537]
[1734810310724,0.051536,97063.0,97061.0,0.051537]
[1734810310923,0.051538,97060.0,97054.0,0.41334]
[1734810311119,0.051538,97060.0,97054.0,0.3618]
[1734810311720,0.00828392,97065.0,97054.0,0.3618]
[1734810311919,0.05154,97055.0,97054.0,0.3608]
[1734810312424,0.06837781,97055.0,97054.0,0.3608]
[1734810313323,0.06837326,97055.0,97054.0,0.3618]
[1734810314126,0.01683326,97055.0,97054.0,0.3618]
[1734810314521,0.00828392,97055.0,97054.0,0.3618]
[1734810314928,0.01028392,97055.0,97054.0,0.3608]
[1734810315521,0.02509393,97055.0,97054.0,0.3608]
[1734810316229,0.051543,97049.0,97048.0,9.309e-05]
[1734810316532,0.07662854,97049.0,97048.0,9.309e-05]
[1734810316919,0.08835312,97049.0,97048.0,9.309e-05]
[1734810317335,0.051549,97037.0,97036.0,0.24619789]
[1734810317529,0.07663454,97037.0,97036.0,0.24619789]
[1734810318532,0.00827553,97037.0,97024.0,0.3608]
[1734810318835,0.051556,97025.0,97024.0,0.3608]
[1734810319229,0.00827553,97034.0,97024.0,0.3608]
[1734810319534,0.003,97037.0,97024.0,0.3608]
[1734810319833,0.051553,97030.0,97024.0,0.3608]
[1734810320033,0.051554,97029.0,97024.0,0.3608]
[1734810320223,0.051554,97028.0,97024.0,0.3608]
[1734810320425,0.05982553,97036.0,97027.0,0.051554]
[1734810320627,0.051551,97034.0,97027.0,0.051554]
[1734810320833,0.051555,97028.0,97024.0,0.3608]
[1734810321231,0.051555,97027.0,97024.0,0.3608]
[1734810321543,0.051551,97034.0,97024.0,0.3618]
[1734810321735,0.00827205,97038.0,97031.0,0.051552]
[1734810322033,0.00827205,97045.0,97043.0,0.051546]
[1734810322340,0.00827205,97048.0,97044.0,0.3608]
[1734810322532,0.00010168,97049.0,97047.0,0.051544]
[1734810322729,0.01042699,97048.0,97047.0,0.051544]
[1734810323730,0.12208552,97049.0,97047.0,0.051544]
[1734810324035,0.00010168,97049.0,97047.0,0.051544]
[1734810324232,0.00010168,97049.0,97047.0,0.052544]
[1734810324529,0.01013711,97048.0,97047.0,0.052544]
[1734810324733,0.01013711,97048.0,97047.0,0.053544]
[1734810325529,0.00010168,97049.0,97047.0,0.053544]
[1734810325725,0.00010168,97049.0,97047.0,0.055544]
[1734810325925,0.00010168,97049.0,97047.0,0.054544]
[1734810326735,0.00010168,97049.0,97047.0,0.055544]
[1734810329040,0.01047543,97065.0,97064.0,0.051535]
[1734810329331,0.01047543,97072.0,97070.0,0.051532]
[1734810329526,0.01047543,97071.0,97070.0,0.051532]
[1734810329926,0.01047543,97077.0,97064.0,0.7224]
[1734810330122,0.12198384,97078.0,97064.0,0.7224]
[1734810330123,0.05153,97074.0,97073.0,0.3608]
[1734810330334,0.06200543,97074.0,97073.0,0.3608]
[1734810331225,0.051531,97071.0,97070.0,0.004]
[1734810331426,0.051535,97065.0,97064.0,0.3638]
[1734810331837,0.06201043,97065.0,97064.0,0.3638]
[1734810332132,0.06201043,97065.0,97064.0,0.003]
[1734810332538,0.08736398,97065.0,97064.0,0.003]
[1734810332929,0.09780354,97065.0,97064.0,0.003]
[1734810333240,0.0360255,97065.0,97049.0,0.24619789]
[1734810333426,0.05154,97056.0,97049.0,0.24619789]
[1734810333626,0.01067062,97055.0,97049.0,0.24619789]
[1734810333829,0.01067062,97055.0,97047.0,0.051544]
[1734810333830,0.01067062,97054.0,97047.0,0.051544]
[1734810334143,0.01067062,97053.0,97048.0,0.051543]
[1734810334330,0.01067062,97052.0,97050.0,0.051542]
[1734810334638,0.01067062,97051.0,97050.0,0.051542]
[1734810336845,0.01067062,97051.0,97050.0,0.052542]
[1734810337136,0.01916932,97051.0,97050.0,0.053542]
[1734810337442,0.01067062,97051.0,97050.0,0.002]
[1734810337743,0.01916932,97051.0,97050.0,0.002]
[1734810338841,0.0191662,97051.0,97050.0,0.002]
[1734810340637,0.01067062,97051.0,97050.0,0.3628]
[1734810340842,0.01067062,97051.0,97050.0,0.4387]
[1734810341042,0.00849558,97060.0,97057.0,0.051539]
[1734810341245,0.12198384,97065.0,97064.0,0.051535]
[1734810342640,0.12198384,97065.0,97062.0,0.3608]
[1734810342641,0.05153,97073.0,97063.0,0.0742]
[1734810342829,0.06002558,97073.0,97072.0,0.3608]
[1734810343035,0.05153,97073.0,97072.0,0.3608]
[1734810343539,0.07721413,97073.0,97072.0,0.3608]
[1734810343932,0.051535,97065.0,97063.0,0.0742]
[1734810344139,0.00849558,97064.0,97063.0,0.0742]
[1734810345035,0.00849558,97064.0,97062.0,0.3616]
[1734810345036,0.051536,97063.0,97062.0,0.3616]
[1734810345241,0.00849558,97063.0,97056.0,0.24619789]
[1734810345447,0.051541,97053.0,97050.0,0.24699789]
[1734810345639,0.051541,97053.0,97050.0,0.24619789]
[1734810345836,0.07714298,97053.0,97050.0,0.24619789]
[1734810346050,0.051542,97051.0,97050.0,0.24619789]
[1734810346243,0.07719706,97051.0,97050.0,0.24619789]
[1734810346447,0.08936325,97051.0,97050.0,0.24619789]
[1734810346651,0.08936325,97051.0,97043.0,0.30813892]
[1734810346652,0.051546,97044.0,97043.0,0.30813892]
[1734810346843,0.45000581,97044.0,97043.0,0.30813892]
[1734810347150,0.051552,97033.0,97027.0,0.36234583]
[1734810347446,0.00847855,97032.0,97031.0,0.051553]
[1734810347949,0.01701507,97040.0,97031.0,0.051553]
[1734810347950,0.00847855,97039.0,97038.0,0.051549]
[1734810348646,0.13046239,97049.0,97044.0,0.051545]
[1734810348847,0.00847855,97048.0,97047.0,0.3608]
[1734810349849,0.051548,97041.0,97038.0,0.009]
[1734810350037,0.00847855,97047.0,97038.0,0.009]
[1734810350237,0.051548,97040.0,97038.0,0.009]
[1734810350450,0.051548,97040.0,97035.0,0.05155]
[1734810350643,0.051548,97040.0,97039.0,0.3608]
[1734810350837,0.06003912,97040.0,97039.0,0.3608]
[1734810351848,0.06103912,97040.0,97039.0,0.3608]
[1734810352847,0.06103912,97040.0,97039.0,0.3648]
[1734810353146,0.07151907,97040.0,97039.0,0.3648]
[1734810353546,0.01996868,97040.0,97039.0,0.3648]
[1734810353750,0.01996868,97040.0,97039.0,0.3728]
[1734810354049,0.01147995,97040.0,97039.0,0.4442]
[1734810354555,0.001,97040.0,97039.0,0.4442]
[1734810356542,0.01047995,97051.0,97050.0,0.051543]
[1734810356753,0.01047995,97051.0,97050.0,0.412343]
[1734810357650,0.01898145,97057.0,97056.0,0.051539]
[1734810357840,0.01047995,97057.0,97056.0,0.051539]
[1734810358445,0.01898145,97066.0,97065.0,0.051535]
[1734810358649,0.01898145,97066.0,97065.0,0.412335]
[1734810358849,0.01037925,97066.0,97065.0,0.412335]
[1734810360345,0.01437925,97066.0,97065.0,0.412335]
[1734810360953,0.00851698,97077.0,97076.0,0.051529]
[1734810361149,0.01214496,97082.0,97076.0,0.412329]
[1734810361150,0.00851698,97079.0,97076.0,0.412329]
[1734810361345,0.00851698,97078.0,97065.0,0.3608]
[1734810361547,0.051534,97067.0,97065.0,0.3608]
[1734810361748,0.0085259,97077.0,97065.0,0.3608]
[1734810361749,0.0600559,97074.0,97065.0,0.3608]
[1734810362055,0.0085259,97073.0,97072.0,0.051531]
[1734810362948,0.051533,97069.0,97067.0,0.3608]
[1734810363853,0.00852454,97068.0,97067.0,0.3608]
[1734810364949,0.051529,97076.0,97073.0,0.05153]
[1734810365159,0.051529,97076.0,97075.0,0.3608]
[1734810365347,0.06005125,97076.0,97075.0,0.3608]
[1734810366652,0.06205106,97076.0,97075.0,0.3608]
[1734810367255,0.002,97076.0,97075.0,0.3608]
[1734810367457,0.12198384,97082.0,97080.0,0.051527]
[1734810368347,0.051516,97101.0,97075.0,0.4346]
[1734810368348,0.12198384,97090.0,97075.0,0.4346]
[1734810368552,0.12198384,97090.0,97089.0,0.412322]
[1734810369152,0.12198384,97090.0,97089.0,0.3608]
[1734810370057,0.002,97090.0,97089.0,0.3618]
[1734810370852,0.01053547,97090.0,97089.0,0.3618]
[1734810371043,0.00853547,97090.0,97075.0,0.00088]
[1734810371244,0.00853547,97090.0,97067.0,0.3608]
[1734810371245,0.051531,97072.0,97070.0,0.18487894]
[1734810372353,0.00853547,97071.0,97070.0,0.18487894]
[1734810372650,0.00853547,97071.0,97067.0,0.3608]
[1734810372855,0.01910049,97070.0,97067.0,0.3608]
[1734810373058,0.01910049,97069.0,97067.0,0.3608]
[1734810373256,0.01910049,97068.0,97067.0,0.3608]
[1734810373859,0.01056502,97068.0,97067.0,0.3608]
[1734810374156,0.051546,97044.0,97043.0,0.18487894]
[1734810374350,0.051546,97044.0,97031.0,0.38673892]
[1734810374351,0.051552,97032.0,97031.0,0.38757892]
[1734810374552,0.42291702,97032.0,97031.0,0.18245786]
[1734810375057,0.051556,97025.0,97011.0,0.0786]
[1734810375253,0.051556,97025.0,97010.0,0.00084]
[1734810375254,0.051563,97011.0,97010.0,0.00084]
[1734810375448,0.051569,97001.0,96993.0,0.0779]
[1734810375759,0.23563846,97010.0,96993.0,0.0779]
[1734810375952,0.23563846,97010.0,97008.0,0.051565]
[1734810375953,0.01056502,97010.0,97008.0,0.051565]
[1734810376154,0.00853547,97023.0,97009.0,0.3608]
[1734810376352,0.051556,97024.0,97009.0,0.3608]
[1734810376659,0.00853547,97023.0,97009.0,0.3608]
[1734810376859,0.12198384,97010.0,97009.0,0.3608]
[1734810377046,0.15245074,97018.0,97014.0,0.051562]
[1734810377957,0.03345074,97018.0,97017.0,0.3608]
[1734810378159,0.01214496,97043.0,97029.0,0.051553]
[1734810378356,0.54198916,97049.0,97035.0,0.3608]
[1734810378357,0.051546,97044.0,97035.0,0.3608]
[1734810378552,0.051548,97040.0,97035.0,0.3608]
[1734810379562,0.54198916,97049.0,97035.0,0.3608]
[1734810379752,0.051546,97045.0,97035.0,0.3608]
[1734810380062,0.002,97040.0,97035.0,0.3608]
[1734810380285,0.051553,97031.0,97020.0,0.051558]
[1734810380556,0.051553,97031.0,97017.0,0.37576219]
[1734810380557,0.001,97040.0,97027.0,0.3608]
[1734810381058,0.051548,97041.0,97027.0,0.3608]
[1734810381260,0.002,97040.0,97028.0,0.1559]
[1734810381461,0.002,97040.0,97036.0,0.3608]
[1734810382659,0.051543,97050.0,97036.0,0.3608]
[1734810382861,0.051543,97050.0,97041.0,0.051547]
[1734810383064,0.051538,97059.0,97043.0,0.051546]
[1734810383261,0.051539,97057.0,97044.0,0.3608]
[1734810383465,0.051541,97053.0,97044.0,0.3608]
[1734810383764,0.051545,97046.0,97044.0,0.3608]
[1734810384353,0.3608,97045.0,97028.0,0.1559]
[1734810384558,0.051554,97029.0,97028.0,0.0786]
[1734810384859,0.3608,97029.0,97016.0,0.0737]
[1734810385060,0.051558,97021.0,97016.0,0.1523]
[1734810385364,0.3608,97029.0,97016.0,0.1523]
[1734810385365,0.051554,97029.0,97020.0,0.3608]
[1734810385659,0.3608,97037.0,97016.0,0.1523]
[1734810386163,0.3608,97029.0,97016.0,0.1523]
[1734810386370,0.05156,97018.0,97016.0,0.0876]
[1734810386858,0.05156,97018.0,97016.0,0.0806]
[1734810387166,0.051556,97025.0,97016.0,0.0806]
[1734810387365,0.051556,97025.0,97016.0,0.0796]
[1734810387664,0.051557,97024.0,97016.0,0.0906]
[1734810387962,0.3608,97029.0,97020.0,0.051558]
[1734810388167,0.051555,97028.0,97020.0,0.051558]
[1734810388759,0.3608,97029.0,97019.0,0.3608]
[1734810389064,0.3608,97037.0,97021.0,0.11405742]
[1734810389368,0.3608,97049.0,97019.0,0.3608]
[1734810389369,0.051551,97035.0,97032.0,0.3608]
[1734810389763,0.3608,97049.0,97032.0,0.3608]
[1734810389959,0.3608,97049.0,97034.0,0.051551]
[1734810390165,0.051548,97041.0,97034.0,0.051551]
[1734810390355,0.3608,97049.0,97026.0,0.051555]
[1734810390560,0.051551,97034.0,97026.0,0.051555]
[1734810390964,0.051551,97034.0,97030.0,0.051553]
[1734810391156,0.051551,97034.0,97028.0,0.3608]
[1734810391357,0.001,97035.0,97028.0,0.3608]
[1734810391665,0.051554,97030.0,97028.0,0.3608]
[1734810392368,0.3628,97049.0,97026.0,0.002]
[1734810392369,0.051555,97027.0,97026.0,0.002]
[1734810393370,0.051555,97027.0,97019.0,0.051559]
[1734810393559,0.051556,97025.0,97019.0,0.051559]
[1734810394670,0.3608,97029.0,97016.0,0.0786]
[1734810394973,0.051554,97029.0,97023.0,0.3608]
[1734810395177,0.051554,97028.0,97023.0,0.3608]
[1734810395372,0.051554,97028.0,97026.0,0.001]
[1734810395759,0.051549,97038.0,97030.0,0.051553]
[1734810395969,0.051549,97038.0,97033.0,0.051551]
[1734810396865,0.01063695,97048.0,97031.0,0.0768]
[1734810397067,0.01063695,97047.0,97031.0,0.0768]
[1734810397272,0.3608,97049.0,97031.0,0.0768]
[1734810397273,0.051549,97039.0,97031.0,0.0768]
[1734810397467,0.051549,97039.0,97032.0,0.3608]
[1734810397969,0.001,97038.0,97033.0,0.001]
[1734810398166,0.001,97038.0,97033.0,0.052551]
[1734810398167,0.05155,97037.0,97033.0,0.052551]
[1734810398575,0.05155,97037.0,97033.0,0.051551]
[1734810399175,0.01064761,97041.0,97033.0,0.005]
[1734810399375,0.051551,97035.0,97033.0,0.005]
[1734810399576,0.051551,97035.0,97033.0,0.003]
[1734810400069,0.051551,97035.0,97033.0,0.004]
[1734810400278,0.01064761,97034.0,97033.0,0.004]
[1734810401077,0.01064761,97034.0,97033.0,0.055552]
[1734810401468,0.01064761,97034.0,97033.0,0.054552]
[1734810401970,0.01064761,97034.0,97033.0,0.051552]
[1734810402161,0.01064761,97034.0,97033.0,0.054552]
[1734810402970,0.06219861,97034.0,97033.0,0.003]
[1734810403178,0.06211334,97034.0,97033.0,0.004]
[1734810403377,0.44825199,97034.0,97033.0,0.004]
[1734810403570,0.44835946,97034.0,97033.0,0.004]
[1734810403772,0.44835946,97034.0,97033.0,0.003]
[1734810403961,0.44835946,97034.0,97033.0,0.004]
[1734810404676,0.44835946,97034.0,97033.0,0.003]
[1734810404975,0.05156,97017.0,97008.0,0.3608]
[1734810405176,0.051563,97011.0,97008.0,0.3608]
[1734810405372,0.01059362,97010.0,97008.0,0.3608]
[1734810405570,0.01059362,97009.0,97008.0,0.3608]
[1734810405967,0.01069621,97009.0,97008.0,0.3608]
[1734810406369,0.01069621,97009.0,97008.0,0.3758]
[1734810406570,0.01069754,97009.0,97008.0,0.3758]
[1734810406977,0.051563,97011.0,97008.0,0.3758]
[1734810407180,0.01069766,97009.0,97008.0,0.3698]
[1734810407368,0.01069766,97009.0,97008.0,0.3758]
[1734810407970,0.00844108,97011.0,97009.0,0.051564]
[1734810408168,0.10270793,97010.0,97009.0,0.051564]
[1734810408579,0.00944108,97011.0,97009.0,0.051564]
[1734810408973,0.00944108,97011.0,97009.0,0.060564]
[1734810409677,0.001,97010.0,97009.0,0.060564]
[1734810409976,0.001,97010.0,97009.0,0.057564]
[1734810410178,0.001,97011.0,97010.0,0.051564]
[1734810411479,0.07708813,97018.0,97009.0,0.006]
[1734810411779,0.05156,97018.0,97015.0,0.051561]
[1734810412866,0.02552813,97024.0,97010.0,0.006]
[1734810413072,0.051563,97012.0,97010.0,0.006]
[1734810413976,0.02557411,97011.0,97009.0,0.009]
[1734810414292,0.051563,97012.0,97009.0,0.009]
[1734810414481,0.051563,97012.0,97010.0,0.051563]
[1734810415272,0.051564,97011.0,97009.0,0.009]
[1734810415784,0.051564,97010.0,97008.0,0.3608]
[1734810416688,0.051564,97010.0,97009.0,0.006]
[1734810416875,0.06001556,97010.0,97009.0,0.006]
[1734810417067,0.00845156,97010.0,97009.0,0.006]
[1734810417283,0.00845156,97010.0,97009.0,0.051564]
[1734810417472,0.00845156,97015.0,97009.0,0.051564]
[1734810417672,0.00845156,97014.0,97009.0,0.009]
[1734810417970,0.00845156,97013.0,97011.0,0.051563]
[1734810418170,0.00845156,97013.0,97008.0,0.3668]
[1734810418171,0.00845156,97012.0,97008.0,0.3668]
[1734810418377,0.051564,97010.0,97009.0,0.009]
[1734810418572,0.06001556,97010.0,97009.0,0.009]
[1734810418779,0.07691118,97010.0,97008.0,0.006]
[1734810418972,0.02534718,97009.0,97005.0,0.0777]
[1734810419174,0.07691218,97008.0,97005.0,0.0777]
[1734810419376,0.00845156,97007.0,97002.0,0.3616]
[1734810419685,0.051569,97001.0,96996.0,0.05167885]
[1734810419879,0.06002056,97001.0,96997.0,0.051571]
[1734810420082,0.06002056,97001.0,96996.0,0.00010785]
[1734810420083,0.00845156,97001.0,96999.0,0.051569]
[1734810420272,0.02534331,97003.0,96998.0,0.3608]
[1734810420476,0.00845156,97002.0,97001.0,0.051569]
[1734810420678,0.01060385,97002.0,97001.0,0.051569]
[1734810421790,0.01160385,97002.0,97001.0,0.060569]
[1734810422083,0.001,97002.0,97001.0,0.060569]
[1734810423083,0.00844462,97014.0,97013.0,0.051562]
[1734810423387,0.01895831,97014.0,97013.0,0.412362]
[1734810423886,0.01051369,97014.0,97013.0,0.412362]
[1734810424281,0.01969809,97014.0,97013.0,0.421362]
[1734810425183,0.01969809,97014.0,97013.0,0.425362]
[1734810425384,0.01969809,97014.0,97013.0,0.3738]
[1734810425587,0.01969809,97014.0,97013.0,0.013]
[1734810425780,0.0367085,97014.0,97013.0,0.013]
[1734810426389,0.1860085,97014.0,97013.0,0.013]
[1734810426686,0.27282997,97014.0,97013.0,0.013]
[1734810427188,0.27280577,97014.0,97013.0,0.013]
[1734810427778,0.50412894,97014.0,97013.0,0.013]
[1734810428888,0.32293978,97014.0,97000.0,0.1]
[1734810429076,0.051568,97002.0,97000.0,0.1]
[1734810429278,0.0356843,97001.0,97000.0,0.1]
[1734810429783,0.0356843,97001.0,97000.0,0.151569]
[1734810429784,0.01867389,97001.0,97000.0,0.151569]
[1734810429984,0.01867389,97001.0,97000.0,0.157569]
[1734810430383,0.01025347,97001.0,97000.0,0.166569]
[1734810430778,0.01125347,97001.0,97000.0,0.166569]
[1734810430977,0.01125347,97001.0,97000.0,0.28361458]
[1734810431291,0.001,97001.0,97000.0,0.28361458]
[1734810431485,0.00842626,97010.0,97009.0,0.051564]
[1734810431683,0.00842626,97010.0,97009.0,0.412364]
[1734810432683,0.15341267,97026.0,97012.0,0.051563]
[1734810432879,0.051561,97015.0,97012.0,0.051563]
[1734810433095,0.00843884,97014.0,97012.0,0.051563]
[1734810433390,0.00843884,97013.0,97012.0,0.051563]